bitfinex/quotes_ETHUSD_20240530
["timestamp","ask_amount","ask_price","bid_price","bid_amount"]
[1717050852976,5.96054045,3758.4,3758.3,1.87456897]
[1717050853864,3.0,3758.4,3758.3,1.87456897]
[1717050854239,6.33609679,3758.5,3758.3,1.87456897]
[1717050854441,2.89431222,3758.4,3758.3,1.87456897]
[1717050854634,6.33609679,3758.5,3758.3,1.87456897]
[1717050855091,2.89431222,3758.4,3758.3,1.87456897]
[1717050855273,6.29165312,3758.4,3758.3,1.87456897]
[1717050855580,9.29165312,3758.4,3758.3,1.87456897]
[1717050856440,9.84165312,3758.4,3758.3,1.87456897]
[1717050857540,10.15868137,3758.4,3758.3,1.87456897]
[1717050857885,10.4175835,3758.4,3758.3,1.87456897]
[1717050859481,9.84165312,3758.4,3758.3,1.87456897]
[1717050859798,10.41756418,3758.4,3758.3,1.87456897]
[1717050861551,10.41756111,3758.4,3758.3,1.87456897]
[1717050862954,10.73458936,3758.4,3758.3,8.97e-06]
[1717050863355,10.73458936,3758.4,3758.0,8.97e-06]
[1717050863356,5.38855,3758.1,3758.0,8.97e-06]
[1717050863572,13.598447,3758.1,3758.0,8.97e-06]
[1717050863781,19.6892485,3758.1,3758.0,8.97e-06]
[1717050864085,20.2392485,3758.1,3757.9,8.47e-06]
[1717050864267,9.40642171,3758.0,3757.9,8.47e-06]
[1717050864469,12.25782171,3758.0,3757.9,8.47e-06]
[1717050864795,2.792,3757.8,3757.7,8.47e-06]
[1717050864963,8.54077346,3757.8,3757.7,8.47e-06]
[1717050865164,9.44384876,3757.8,3757.7,8.47e-06]
[1717050865371,1.59732,3756.3,3755.2,2.3324]
[1717050865593,1.29789222,3756.2,3755.2,2.3324]
[1717050865770,1.29789222,3756.2,3754.8,1.59791]
[1717050866171,4.29789222,3756.2,3754.8,1.59791]
[1717050866570,1.59741,3756.1,3754.8,1.59791]
[1717050866771,2.53742244,3756.0,3754.8,1.59791]
[1717050867222,3.0,3755.9,3754.8,1.59791]
[1717050867662,1.59741,3756.1,3755.5,2.3484]
[1717050867860,3.0,3756.5,3755.5,2.3484]
[1717050868406,2.29789222,3756.4,3755.2,2.2863]
[1717050868615,1.09862,3756.3,3755.2,2.2863]
[1717050868761,1.29789222,3756.2,3755.2,2.2863]
[1717050868961,2.89525222,3756.2,3755.9,0.02370081]
[1717050869236,3.0,3756.1,3755.2,2.2863]
[1717050869945,3.0,3756.1,3755.2,3.88405]
[1717050870070,3.0,3756.5,3755.9,0.02456177]
[1717050870270,3.0,3756.5,3755.2,3.88405]
[1717050871139,1.29789222,3756.4,3755.2,3.88405]
[1717050871300,2.89518222,3756.4,3755.2,3.88405]
[1717050871650,1.59736,3756.2,3755.1,2.3298]
[1717050871776,1.29789222,3756.1,3755.1,2.3298]
[1717050871977,4.29789222,3756.1,3755.1,2.3298]
[1717050872329,3.0,3756.1,3755.1,2.3298]
[1717050872472,1.59736,3756.2,3755.1,2.3298]
[1717050873083,1.29789222,3756.1,3755.1,2.3298]
[1717050873413,4.29789222,3756.1,3755.1,2.3298]
[1717050873798,1.0,3755.9,3754.6,1.59801]
[1717050874000,5.84789222,3755.9,3754.4,4.9727]
[1717050875628,5.84789222,3755.9,3754.4,2.3847]
[1717050875952,1.0,3755.2,3754.1,2.63583034]
[1717050876223,1.0,3754.3,3753.0,0.005]
[1717050876375,1.84789222,3754.2,3753.0,0.005]
[1717050876720,5.77628121,3754.2,3753.0,0.005]
[1717050876920,1.47838899,3754.1,3753.0,0.005]
[1717050877125,3.6688926,3754.1,3753.1,1.59867]
[1717050877421,1.59817,3754.3,3753.0,2.593]
[1717050877593,3.0,3754.6,3753.1,0.50742]
[1717050877792,3.0,3754.6,3753.0,4.1917]
[1717050877793,3.2684,3754.4,3753.0,0.005]
[1717050878026,1.75731107,3754.3,3753.0,0.005]
[1717050878321,4.75731107,3754.3,3753.0,0.005]
[1717050878493,5.52487582,3754.3,3753.1,2.4167]
[1717050878692,5.52487582,3754.3,3753.2,0.24217]
[1717050878693,5.05761885,3754.3,3753.2,0.24217]
[1717050878925,1.59832,3754.0,3753.0,0.005]
[1717050879297,2.24549394,3754.0,3753.0,0.005]
[1717050879711,3.0,3754.3,3753.1,3.92726]
[1717050879882,0.62591627,3754.5,3753.1,3.92726]
[1717050880313,1.59817,3754.3,3753.1,3.92726]
[1717050880519,1.59817,3754.3,3753.2,0.393226]
[1717050881521,2.89606222,3754.3,3753.2,0.393226]
[1717050881726,1.59831,3754.0,3753.0,0.005]
[1717050881887,1.29789222,3753.9,3753.0,0.005]
[1717050883131,1.59831,3754.0,3753.0,0.005]
[1717050885212,3.0,3754.2,3753.0,0.005]
[1717050885410,3.0,3754.2,3753.0,0.42951087]
[1717050886016,1.29789222,3754.1,3753.0,0.42951087]
[1717050886217,1.29789222,3754.1,3753.0,0.005]
[1717050886411,3.0,3754.2,3753.1,2.3681]
[1717050886617,3.0,3754.2,3753.3,1.59858]
[1717050886945,6.33609679,3754.3,3753.3,1.59858]
[1717050887338,1.29789222,3754.2,3753.1,2.3681]
[1717050887551,6.33609679,3754.3,3753.1,2.60541]
[1717050887707,6.33609679,3754.3,3753.1,4.20405]
[1717050888060,6.33609679,3754.3,3753.4,1.59854]
[1717050889403,18.69609679,3754.7,3753.9,1.5983]
[1717050889642,6.33609679,3755.1,3754.0,0.41863]
[1717050890279,2.89577222,3755.0,3753.5,2.3144]
[1717050890563,3.2957113,3755.0,3753.5,2.3144]
[1717050890771,1.59797,3754.8,3753.5,2.3144]
[1717050890972,1.59797,3754.8,3752.8,3.0]
[1717050890973,1.0,3754.4,3753.0,2.4579]
[1717050891108,1.0,3754.4,3753.0,2.4505]
[1717050891109,1.59822,3754.2,3753.0,2.4505]
[1717050891314,1.29789222,3754.1,3753.0,2.4505]
[1717050896850,1.29789222,3754.1,3752.8,1.945]
[1717050896851,1.59834,3753.9,3752.5,0.006]
[1717050897057,3.259805,3754.3,3752.5,0.006]
[1717050897058,1.59842,3753.7,3752.5,0.006]
[1717050897226,1.29789222,3753.6,3752.5,0.006]
[1717050898908,1.29789222,3753.6,3752.6,1.945]
[1717050899110,1.59842,3753.7,3752.6,1.945]
[1717050899111,1.29789222,3753.5,3752.6,1.945]
[1717050899308,2.59866,3753.2,3752.5,0.006]
[1717050899554,1.29789222,3752.7,3752.5,0.006]
[1717050899983,2.29789222,3752.6,3752.5,0.006]
[1717050900279,2.29789222,3752.6,3751.6,0.77891407]
[1717050900280,1.59901,3752.3,3751.6,0.77891407]
[1717050900482,1.0,3751.8,3751.6,0.77891407]
[1717050900631,1.29789222,3751.8,3751.6,0.77891407]
[1717050900836,1.29789222,3751.7,3751.6,0.77891407]
[1717050902245,1.84789222,3751.7,3751.6,0.77891407]
[1717050902452,1.29789222,3751.7,3751.6,0.77891407]
[1717050902672,0.3901279,3752.4,3751.6,0.77891407]
[1717050902673,3.0,3752.4,3751.6,0.77891407]
[1717050902839,1.29789222,3752.4,3751.6,0.77891407]
[1717050903037,1.29789222,3752.3,3751.6,0.77891407]
[1717050903236,1.52768144,3752.3,3751.6,0.77891407]
[1717050903485,1.38965522,3753.1,3751.6,2.37822407]
[1717050903693,1.29789222,3753.0,3751.6,2.37822407]
[1717050903870,2.29789222,3752.7,3751.6,0.77891407]
[1717050904181,1.29789222,3752.7,3751.6,0.77891407]
[1717050904483,2.2722,3752.6,3751.6,0.77891407]
[1717050904684,1.75490144,3752.5,3751.6,0.77891407]
[1717050904867,1.5988,3752.9,3751.6,0.77891407]
[1717050905073,1.29789222,3752.8,3751.7,1.59926]
[1717050905385,4.29789222,3752.8,3751.7,1.59926]
[1717050906007,1.0,3752.5,3751.6,0.77891407]
[1717050906305,1.55777722,3752.4,3751.6,0.77891407]
[1717050906641,4.55777722,3752.4,3751.6,0.77891407]
[1717050907142,1.55777722,3752.4,3751.6,0.77891407]
[1717050907951,1.0,3752.9,3751.7,2.3689]
[1717050908139,1.29789222,3752.9,3751.9,1.59918]
[1717050908342,6.33609679,3753.0,3751.9,1.59918]
[1717050908543,7.63398901,3753.0,3751.9,1.59918]
[1717050909346,6.33609679,3753.0,3751.9,1.59918]
[1717050909541,6.33609679,3753.4,3752.8,1.59876]
[1717050909792,12.36,3754.0,3752.8,1.59876]
[1717050909942,1.0,3753.8,3752.1,1.59907]
[1717050910144,1.29789222,3753.7,3752.1,1.59907]
[1717050910343,1.29789222,3753.7,3752.0,0.396808]
[1717050910344,1.29789222,3753.7,3752.6,2.4785]
[1717050911016,1.29789222,3753.7,3752.2,0.1995878]
[1717050911221,1.0,3753.4,3752.1,2.3451]
[1717050911525,1.29789222,3753.3,3752.1,2.3451]
[1717050911818,0.22978922,3753.2,3752.1,2.3451]
[1717050911970,1.0,3753.0,3752.1,2.3451]
[1717050912174,1.0,3753.0,3751.9,1.59917]
[1717050912175,1.29789222,3752.9,3751.5,2.4828]
[1717050912370,1.0,3752.6,3751.5,2.4828]
[1717050912624,1.29789222,3752.5,3751.3,1.6985535]
[1717050912776,0.22978922,3752.4,3751.3,1.6985535]
[1717050912972,1.29789222,3752.3,3751.7,2.4777]
[1717050913188,1.0,3752.9,3751.7,4.07696]
[1717050913386,2.598,3754.3,3751.3,0.0991335]
[1717050913387,2.452,3752.8,3751.3,0.0991335]
[1717050913591,1.0,3752.2,3751.3,0.0991335]
[1717050913877,1.29789222,3752.1,3751.3,0.0991335]
[1717050914078,0.22978922,3752.0,3751.3,0.0991335]
[1717050914291,1.52768144,3752.0,3751.3,0.0991335]
[1717050914843,1.29789222,3751.9,3751.3,0.0991335]
[1717050915197,0.22978922,3752.0,3751.3,0.0991335]
[1717050915397,1.52768144,3752.0,3751.3,0.0991335]
[1717050915614,0.25276814,3751.9,3751.3,0.0991335]
[1717050916298,2.29789222,3751.8,3751.3,0.0991335]
[1717050916493,5.29789222,3751.8,3751.3,0.0991335]
[1717050916688,1.29789222,3751.7,3751.3,0.0991335]
[1717050917195,5.89716222,3751.7,3751.3,0.0991335]
[1717050917394,7.14388418,3751.7,3751.3,0.0991335]
[1717050919447,10.48588418,3751.7,3751.6,0.36823768]
[1717050919609,10.48588418,3751.7,3751.6,0.08404338]
[1717050920212,8.14388418,3751.7,3751.6,0.08404338]
[1717050920395,11.47998097,3751.7,3751.6,0.08404338]
[1717050920828,16.50268097,3751.7,3751.6,0.07544338]
[1717050921272,19.29468097,3751.7,3751.6,0.07544338]
[1717050921617,19.69668097,3751.7,3751.6,0.07544338]
[1717050921920,20.24668097,3751.7,3751.6,0.07544338]
[1717050922503,20.6492627,3751.7,3751.6,0.07544338]
[1717050924457,20.6492627,3751.7,3751.6,3.38e-06]
[1717050924772,20.6492627,3751.7,3750.6,0.02270006]
[1717050924773,1.0,3750.7,3750.6,0.02270006]
[1717050924908,1.29789222,3750.7,3750.6,0.02270006]
[1717050925263,6.33609679,3751.1,3750.6,0.02270006]
[1717050925461,1.29789222,3751.0,3750.6,0.02270006]
[1717050925761,1.0,3750.9,3750.6,0.02270006]
[1717050926083,6.33609679,3751.1,3750.7,0.02368687]
[1717050926274,8.26759869,3751.1,3750.7,0.02368687]
[1717050926411,1.0,3750.9,3750.6,0.02270006]
[1717050926611,1.0,3750.9,3750.6,0.014]
[1717050927253,4.39165,3750.8,3750.6,0.014]
[1717050927460,4.75523423,3750.8,3750.6,0.014]
[1717050927612,5.69079372,3750.7,3750.6,0.014]
[1717050928011,6.14079372,3750.7,3750.6,0.014]
[1717050928296,2.29789222,3750.7,3750.6,0.014]
[1717050928706,1.29789222,3750.7,3750.6,0.014]
[1717050928909,6.33609679,3751.1,3750.6,0.014]
[1717050929109,1.29789222,3751.0,3750.6,0.014]
[1717050929422,1.0,3750.7,3750.6,0.014]
[1717050929637,5.08989222,3750.7,3750.6,0.014]
[1717050929815,5.45347645,3750.7,3750.6,0.014]
[1717050930240,2.29789222,3750.7,3750.6,0.014]
[1717050930439,2.66147645,3750.7,3750.6,0.014]
[1717050930641,6.17392499,3750.7,3750.6,0.014]
[1717050930841,2.81034076,3750.7,3750.6,0.014]
[1717050931112,2.29789222,3750.7,3750.1,2.4327]
[1717050931457,1.29789222,3750.6,3750.0,2.48443422]
[1717050931615,1.0,3750.1,3750.0,2.48443422]
[1717050931819,1.59982,3750.5,3750.0,2.48443422]
[1717050931820,1.0,3750.5,3750.0,2.48443422]
[1717050932018,6.33609679,3751.1,3750.1,2.4242]
[1717050932309,6.33609679,3751.1,3750.6,2.598]
[1717050932646,6.33609679,3751.6,3750.6,2.598]
[1717050932974,1.0,3752.2,3750.7,1.59967]
[1717050933459,1.29789222,3752.1,3750.7,1.59967]
[1717050933753,1.29789222,3752.1,3750.2,0.49086342]
[1717050933754,1.29789222,3752.1,3750.9,3.9826]
[1717050933976,1.29789222,3752.1,3751.1,1.5995]
[1717050936457,1.29789222,3752.1,3750.9,2.383]
[1717050936812,1.29789222,3752.1,3751.0,2.598]
[1717050937012,2.59882,3752.8,3751.3,1.59943]
[1717050937427,13.95768,3755.5,3750.2,0.49086342]
[1717050937428,1.59856,3753.4,3752.1,2.598]
[1717050937559,1.29789222,3753.3,3752.2,1.59904]
[1717050937936,1.5983,3754.0,3752.7,2.37]
[1717050938136,1.29789222,3753.9,3752.7,2.37]
[1717050938537,1.29789222,3753.9,3752.8,1.59878]
[1717050939372,1.0,3754.4,3753.2,1.59863]
[1717050939573,1.29789222,3754.3,3753.2,1.59863]
[1717050939875,1.29789222,3754.1,3752.8,1.59877]
[1717050940756,1.0,3755.1,3753.2,2.3308]
[1717050941109,1.29789222,3755.0,3754.0,2.598]
[1717050941261,0.22978922,3754.9,3754.0,2.598]
[1717050941461,1.52768144,3754.9,3754.0,2.598]
[1717050941891,1.52768144,3754.9,3753.2,2.3308]
[1717050941892,1.0,3754.7,3753.2,2.3308]
[1717050942210,1.0,3753.7,3752.5,1.5989]
[1717050942508,1.0,3753.3,3752.2,2.2798]
[1717050942692,1.0,3752.8,3751.4,2.2798]
[1717050943479,1.0,3752.8,3751.5,0.04773088]
[1717050943963,1.29789222,3752.7,3751.5,0.04773088]
[1717050944162,1.29789222,3752.7,3751.6,2.598]
[1717050944401,0.22978922,3752.6,3751.6,2.598]
[1717050944716,6.33609679,3753.1,3752.1,2.598]
[1717050945046,6.33609679,3753.6,3752.7,1.59884]
[1717050945344,6.33609679,3754.2,3753.1,2.598]
[1717050945492,1.45771622,3754.1,3753.2,2.4758]
[1717050945688,6.33609679,3754.2,3753.2,2.4758]
[1717050945936,6.33609679,3754.2,3753.3,1.64632088]
[1717050946342,7.63398901,3754.2,3753.3,1.64632088]
[1717050946495,1.29789222,3754.1,3753.3,0.04773088]
[1717050946690,6.33609679,3754.2,3753.2,2.4758]
[1717050946896,6.96970647,3754.2,3753.2,4.07441]
[1717050947113,6.33609679,3754.2,3753.2,4.07441]
[1717050947364,6.33609679,3754.2,3753.3,0.04773088]
[1717050948195,1.29789222,3754.1,3753.3,0.04773088]
[1717050948438,1.29789222,3754.1,3753.2,4.07441]
[1717050948843,6.33609679,3754.2,3753.2,4.07441]
[1717050949049,6.33609679,3754.2,3753.6,2.598]
[1717050949357,1.29789222,3754.1,3753.3,0.04773088]
[1717050949568,1.29789222,3754.1,3753.2,2.4758]
[1717050949750,1.29789222,3754.1,3753.4,0.04773088]
[1717050949920,1.29789222,3754.1,3753.2,2.4758]
[1717050950127,1.29789222,3754.1,3753.5,0.04773088]
[1717050950419,3.0,3754.7,3753.6,0.04773088]
[1717050950764,1.75768822,3754.6,3753.2,2.4758]
[1717050950945,1.75768822,3754.6,3753.7,0.04773088]
[1717050951112,1.75768822,3754.6,3753.2,2.4758]
[1717050951319,1.0,3755.4,3753.8,0.04743088]
[1717050951552,2.66471,3755.5,3753.8,1.29789222]
[1717050951719,1.59766,3755.5,3754.1,4.19622]
[1717050951929,1.45765822,3755.4,3754.6,2.598]
[1717050952131,1.45765822,3755.4,3754.1,4.19622]
[1717050952351,1.0,3756.6,3755.2,1.59774]
[1717050952566,1.0,3756.6,3755.8,2.598]
[1717050953059,1.0,3757.1,3755.9,0.04716952]
[1717050953735,1.59709,3756.9,3756.0,2.3621]
[1717050953932,0.259709,3756.8,3756.0,2.3621]
[1717050954353,0.259709,3756.8,3756.1,0.04716952]
[1717050954999,1.0,3756.7,3756.1,0.04716952]
[1717050955319,0.259709,3756.8,3755.3,5.0698]
[1717050955860,0.259709,3756.8,3755.4,0.04716952]
[1717050956073,0.1856799,3756.7,3755.4,0.04716952]
[1717050956651,0.1856799,3756.7,3755.9,2.598]
[1717050956846,1.0,3756.8,3755.9,2.598]
[1717050957063,1.59694,3757.2,3756.0,0.04716952]
[1717050957376,3.0,3757.1,3756.0,0.04716952]
[1717050957671,1.29789222,3757.0,3756.0,0.04716952]
[1717050958039,2.29789222,3757.0,3756.0,0.04716952]
[1717050958270,0.68948322,3756.9,3756.0,0.04716952]
[1717050958417,1.29789222,3756.8,3756.0,0.04716952]
[1717050959870,1.0,3756.7,3756.0,0.04716952]
[1717050960117,1.29789222,3756.6,3755.4,2.598]
[1717050960285,4.29789222,3756.6,3756.1,0.04619532]
[1717050960611,1.98739844,3756.5,3755.4,2.598]
[1717050960818,1.59717,3756.7,3756.2,0.04619532]
[1717050961026,1.0,3757.2,3756.0,2.598]
[1717050961187,1.5969,3757.3,3756.0,2.598]
[1717050961400,1.5969,3757.3,3756.5,2.598]
[1717050961697,1.5969,3757.3,3756.6,0.04619532]
[1717050961898,0.79329968,3757.2,3756.6,0.04619532]
[1717050962482,1.29789222,3757.1,3756.6,0.04619532]
[1717050962679,1.59702,3757.0,3755.5,5.0575]
[1717050962920,2.59713,3756.8,3756.7,0.04619532]
[1717050963100,2.59713,3756.8,3754.8,2.4595]
[1717050963101,1.59735,3756.3,3754.8,2.4595]
[1717050963297,1.45762722,3756.2,3754.9,2.598]
[1717050963503,1.45762722,3756.2,3754.9,2.64419532]
[1717050963701,1.45762722,3756.2,3754.9,0.04619532]
[1717050963702,1.59748,3756.0,3754.9,0.04619532]
[1717050963876,1.29789222,3755.9,3754.9,0.04619532]
[1717050964579,1.59758,3755.7,3754.4,2.598]
[1717050964789,2.58743944,3755.6,3754.5,0.04619532]
[1717050964998,1.59774,3755.3,3754.5,0.04619532]
[1717050965218,1.59783,3755.1,3753.7,2.3403]
[1717050965398,1.59793,3754.9,3754.6,0.04619532]
[1717050965597,1.59793,3754.9,3753.7,2.3403]
[1717050965792,1.59801,3754.7,3753.8,0.04619532]
[1717050966004,1.29789222,3754.6,3753.7,2.3403]
[1717050966708,1.29789222,3754.6,3753.2,2.598]
[1717050966947,1.29789222,3754.6,3753.8,0.04465865]
[1717050967234,1.29789222,3754.6,3753.2,2.598]
[1717050967537,0.41854844,3754.5,3753.2,3.266494]
[1717050967758,1.59801,3754.7,3753.4,1.59854]
[1717050967946,1.29789222,3754.6,3753.4,1.59854]
[1717050968456,1.29789222,3754.6,3753.5,0.04465865]
[1717050968660,2.59817,3754.3,3753.5,0.04465865]
[1717050968960,2.59817,3754.3,3753.0,2.4882]
[1717050968961,1.59829,3754.0,3753.0,2.4882]
[1717050969260,2.89618222,3754.0,3753.0,2.4882]
[1717050969462,1.59829,3754.0,3753.1,0.04203807]
[1717050970131,0.259817,3754.2,3753.1,0.04203807]
[1717050970455,1.29789222,3754.1,3753.1,0.36989]
[1717050971255,6.33609679,3754.4,3753.2,4.1966]
[1717050971677,6.33609679,3754.4,3753.2,5.49449222]
[1717050971976,6.33609679,3754.4,3753.3,0.04219694]
[1717050972134,1.29789222,3754.3,3753.3,0.04219694]
[1717050972654,1.29789222,3754.3,3753.3,0.74768183]
[1717050972860,6.33609679,3754.4,3753.3,0.74768183]
[1717050973677,1.59821,3754.2,3753.3,0.04219694]
[1717050973848,1.29789222,3754.1,3753.0,2.4882]
[1717050974047,1.29789222,3754.1,3753.4,0.04219694]
[1717050974362,1.29789222,3754.1,3753.0,2.4882]
[1717050974561,0.28961022,3754.0,3753.0,2.4882]
[1717050974768,0.28961022,3754.0,3753.1,0.04207337]
[1717050975125,1.29789222,3753.9,3753.1,0.04207337]
[1717050975461,0.28961022,3754.0,3753.1,0.04207337]
[1717050975662,1.29789222,3754.0,3753.1,0.04207337]
[1717050975862,1.59821,3754.2,3753.1,0.04207337]
[1717050976179,2.4913229,3754.1,3753.1,0.04207337]
[1717050977352,1.067217,3754.9,3753.7,2.598]
[1717050977742,1.067217,3754.9,3753.8,0.04228876]
[1717050977955,1.29789222,3754.8,3753.8,0.04228876]
[1717050978382,1.29789222,3754.8,3753.3,2.4776]
[1717050978738,1.29789222,3754.8,3753.4,0.04228876]
[1717050978979,0.9231899,3754.7,3753.4,0.55407764]
[1717050979181,0.9231899,3754.7,3753.6,1.59846]
[1717050979389,0.9231899,3754.7,3753.4,0.55407764]
[1717050979390,6.33609679,3755.0,3753.8,1.59835]
[1717050979760,6.33609679,3755.0,3753.9,0.04234526]
[1717050981059,6.33609679,3755.0,3754.2,2.2751]
[1717050981347,6.33609679,3755.0,3754.3,1.59813]
[1717050981546,12.64954722,3755.6,3754.3,1.63257526]
[1717050981547,18.98564401,3755.6,3754.3,1.63257526]
[1717050981779,1.8985644,3755.5,3754.3,2.28314279]
[1717050981959,18.98564401,3755.6,3754.7,2.598]
[1717050981960,18.69609679,3755.6,3754.7,2.598]
[1717050982157,7.93352679,3756.1,3754.8,1.59793]
[1717050982409,1.29789222,3756.0,3754.8,1.64027526]
[1717050982551,1.29789222,3756.0,3754.8,1.65118867]
[1717050982876,1.59748,3755.9,3754.8,1.59793]
[1717050983048,1.0,3755.5,3754.2,2.2751]
[1717050983245,1.29789222,3755.4,3753.7,2.273]
[1717050983450,1.59792,3754.9,3754.3,0.04234526]
[1717050983675,1.29789222,3754.8,3753.7,2.273]
[1717050983878,1.29789222,3754.8,3753.4,2.598]
[1717050984198,1.29789222,3754.8,3753.8,0.04234526]
[1717050984494,1.29789222,3754.8,3753.9,0.04234526]
[1717050984698,1.0,3754.7,3753.1,3.95407]
[1717050984902,1.59821,3754.2,3754.0,0.04234526]
[1717050985198,1.29789222,3754.1,3753.1,2.3554]
[1717050985552,1.29789222,3754.1,3753.2,0.04234526]
[1717050986394,1.5983,3754.0,3753.2,0.04234526]
[1717050986582,1.68751144,3753.9,3753.2,0.04234526]
[1717050986757,1.68751144,3753.9,3752.5,3.99979]
[1717050986957,1.68751144,3753.9,3753.3,0.04234526]
[1717050987256,1.68751144,3753.9,3752.5,3.99979]
[1717050987808,3.0,3754.5,3752.9,2.598]
[1717050987963,3.0,3754.5,3753.0,1.59868]
[1717050988157,1.29789222,3754.5,3753.0,1.59868]
[1717050988357,1.59813,3754.4,3753.1,0.04234526]
[1717050990410,1.29789222,3754.3,3753.1,0.04234526]
[1717050990703,0.33545714,3754.3,3753.2,1.59861]
[1717050990857,0.45854922,3754.6,3753.4,1.59854]
[1717050991057,7.93396679,3755.0,3753.6,1.59844]
[1717050991302,6.33609679,3755.0,3754.1,1.59824]
[1717050991810,6.33609679,3755.0,3754.2,0.04232406]
[1717050992172,7.63398901,3755.0,3754.2,0.04232406]
[1717050992581,7.63398901,3755.0,3753.5,3.99617]
[1717050992792,1.59796,3754.8,3753.5,3.99617]
[1717050992989,1.59804,3754.6,3753.6,0.04198512]
[1717050993501,3.0,3754.8,3753.6,0.04198512]
[1717050993664,3.9231819,3754.9,3753.6,0.04198512]
[1717050993867,0.73127449,3754.8,3753.7,1.59838]
[1717050994200,0.9231819,3754.9,3753.7,1.64032982]
[1717050996401,1.29789222,3754.8,3753.7,1.64032982]
[1717050996701,1.59802,3754.7,3753.7,0.04194982]
[1717050996878,1.29789222,3754.6,3753.1,1.59863]
[1717050997200,1.55001241,3754.6,3753.8,0.04189335]
[1717050997400,1.55001241,3754.6,3753.1,1.59863]
[1717050997703,1.55001241,3754.6,3753.2,0.04189335]
[1717050997909,1.59812,3754.4,3753.2,0.04189335]
[1717050998087,1.61270546,3754.3,3753.2,0.04189335]
[1717050999317,4.61270546,3754.3,3753.2,0.04189335]
[1717051004408,1.59822,3754.2,3753.2,0.04189335]
[1717051004613,1.29789222,3754.1,3753.2,0.04189335]
[1717051004816,1.29789222,3754.1,3753.1,1.59863]
[1717051005110,0.62109255,3754.0,3753.1,1.59863]
[1717051005448,1.59822,3754.2,3753.1,1.59863]
[1717051005932,1.29789222,3754.1,3753.1,1.59863]
[1717051006793,1.29789222,3754.1,3752.5,1.59889]
[1717051006794,1.59831,3754.0,3752.5,1.59889]
[1717051006988,1.29789222,3753.9,3752.5,1.59889]
[1717051007190,0.64726979,3753.8,3752.6,0.04196398]
[1717051007387,1.29789222,3753.8,3752.6,0.04196398]
[1717051007635,1.29789222,3753.7,3752.6,0.04196398]
[1717051008239,1.59846,3753.6,3752.6,0.04196398]
[1717051008536,1.59857,3753.4,3752.0,1.59914]
[1717051008842,2.89646222,3753.4,3752.7,0.04196398]
[1717051009048,3.18610844,3753.4,3752.0,1.59914]
[1717051009410,3.18610844,3753.4,3752.1,0.04196398]
[1717051014162,2.89646222,3753.4,3752.1,0.04196398]
[1717051015454,4.59834,3753.9,3752.2,1.59905]
[1717051015657,4.29789222,3753.8,3752.2,1.59905]
[1717051015866,1.29789222,3753.8,3752.2,1.59905]
[1717051016210,4.29789222,3753.8,3752.2,1.59905]
[1717051016539,0.88962322,3753.7,3752.3,0.159905]
[1717051016749,2.18751544,3753.7,3752.3,0.159905]
[1717051016906,2.89636222,3753.6,3752.2,1.59905]
[1717051018327,1.59866,3753.2,3751.7,1.59925]
[1717051018647,1.29789222,3753.1,3752.3,0.04036989]
[1717051018828,0.28965522,3753.0,3751.7,1.59925]
[1717051019026,0.28965522,3753.0,3752.4,0.04036989]
[1717051019234,0.28965522,3753.0,3751.7,1.59925]
[1717051019564,0.28965522,3753.0,3751.8,0.04036989]
[1717051019730,1.59859,3753.4,3752.0,2.598]
[1717051019926,1.59859,3753.4,3752.3,1.59898]
[1717051020328,1.59859,3753.4,3752.4,0.04031337]
[1717051020528,1.59835,3753.9,3752.4,0.04031337]
[1717051020734,1.29789222,3753.8,3752.4,0.0532905]
[1717051020935,0.58962422,3753.7,3752.4,0.16522705]
[1717051021230,1.88751644,3753.7,3752.4,0.16522705]
[1717051021541,4.88751644,3753.7,3752.5,0.04031337]
[1717051021712,1.59835,3753.9,3752.7,1.59881]
[1717051022160,1.59842,3753.7,3752.7,1.59881]
[1717051022362,2.89631222,3753.7,3752.8,0.04031337]
[1717051022518,2.89631222,3753.7,3752.5,2.598]
[1717051022719,2.89631222,3753.7,3752.9,0.04031337]
[1717051022915,0.28963122,3753.6,3752.2,1.59904]
[1717051023571,0.28963122,3753.6,3752.4,1.59895]
[1717051024173,0.28963122,3753.6,3752.5,0.04031337]
[1717051024551,0.28963122,3753.6,3752.6,1.59886]
[1717051024953,0.28963122,3753.6,3752.7,0.04031337]
[1717051025545,3.0,3754.0,3752.8,1.5988]
[1717051026349,1.59821,3754.2,3752.8,2.89669222]
[1717051026545,0.31481324,3754.3,3753.2,1.59863]
[1717051027113,0.31481324,3754.3,3753.3,0.04019683]
[1717051027550,0.31481324,3754.3,3753.2,1.59863]
[1717051028085,6.33609679,3754.1,3753.3,0.04003089]
[1717051028257,6.33609679,3754.1,3753.4,1.59854]
[1717051028599,6.33609679,3754.1,3753.5,0.03970955]
[1717051030421,6.33609679,3754.1,3753.6,1.59846]
[1717051030586,1.59801,3754.7,3753.6,1.59846]
[1717051030782,0.79341068,3754.6,3753.7,0.03972014]
[1717051031108,0.79341068,3754.6,3753.6,1.59846]
[1717051031901,4.59801,3754.7,3753.6,1.59846]
[1717051032106,6.33609679,3754.8,3753.7,0.05327407]
[1717051033092,6.33609679,3754.8,3754.0,1.59825]
[1717051033601,6.33609679,3754.8,3754.1,0.03972014]
[1717051035777,6.33609679,3754.8,3753.6,2.598]
[1717051035778,1.29789222,3754.7,3752.9,3.92814]
[1717051035973,1.59836,3753.9,3752.4,3.94977]
[1717051036290,1.59844,3753.7,3752.4,1.59897]
[1717051036604,1.59844,3753.7,3751.9,2.3508]
[1717051036605,1.59851,3753.5,3751.9,2.3508]
[1717051036790,1.59862,3753.3,3751.9,0.6548]
[1717051036992,1.59868,3753.1,3751.8,1.5992]
[1717051037205,0.58964022,3753.4,3751.2,1.59946]
[1717051037206,2.59882,3752.8,3751.2,1.59946]
[1717051037514,2.59882,3752.8,3750.6,4.19774]
[1717051037802,1.59894,3752.5,3750.6,4.19774]
[1717051038006,1.14850368,3752.4,3750.7,0.661714]
[1717051038665,1.59908,3752.2,3750.7,0.661714]
[1717051039060,2.14850368,3752.4,3750.7,0.661714]
[1717051039061,1.59914,3752.0,3750.7,0.661714]
[1717051039291,1.29789222,3751.9,3750.6,1.59974]